[Event "Early-Titled-Tuesday-Blitz-March-12-2024"]
[Site "Chess.com"]
[Date "2024.03.12"]
[Round "10"]
[White "nelsi"]
[Black "littlepinkyboy"]
[Result "0-1"]
[WhiteElo "2417"]
[BlackElo "2612"]
[TimeControl "180+1"]
[EndTime "9:51:57 PDT"]
[Termination "littlepinkyboy won on time"]

1. e4 {[%clk 0:03:00.9]} 1... c5 {[%clk 0:02:56.9]} 2. Nf3 {[%clk 0:03:01.3]}
2... e6 {[%clk 0:02:55.7]} 3. Nc3 {[%clk 0:03:00.6]} 3... Nc6 {[%clk 0:02:53.3]}
4. Bb5 {[%clk 0:03:00.2]} 4... Nf6 {[%clk 0:02:53.1]} 5. O-O {[%clk 0:02:58.2]}
5... Qc7 {[%clk 0:02:51.4]} 6. Re1 {[%clk 0:02:56.1]} 6... d6 {[%clk 0:02:43.7]}
7. d4 {[%clk 0:02:49.6]} 7... cxd4 {[%clk 0:02:41.5]} 8. Qxd4 {[%clk 0:02:50.5]}
8... Bd7 {[%clk 0:02:39.4]} 9. Bxc6 {[%clk 0:02:51]} 9... Bxc6 {[%clk
0:02:38.8]} 10. Bg5 {[%clk 0:02:51.9]} 10... Be7 {[%clk 0:02:36.3]} 11. Rad1
{[%clk 0:02:46.1]} 11... O-O {[%clk 0:02:27.6]} 12. Bxf6 {[%clk 0:02:12.6]}
12... gxf6 {[%clk 0:02:28.5]} 13. Re3 {[%clk 0:01:48.3]} 13... Kh8 {[%clk
0:02:08.2]} 14. Nh4 {[%clk 0:01:42.8]} 14... Rg8 {[%clk 0:01:58]} 15. Rh3 {[%clk
0:01:39.2]} 15... Qb6 {[%clk 0:01:48.8]} 16. Qd2 {[%clk 0:01:10.5]} 16... Rg7
{[%clk 0:01:30]} 17. Qh6 {[%clk 0:00:51.7]} 17... Rag8 {[%clk 0:01:28.6]} 18.
Rdd3 {[%clk 0:00:45.9]} 18... Qxb2 {[%clk 0:01:21.1]} 19. g3 {[%clk 0:00:23.2]}
19... Qxc2 {[%clk 0:01:10.5]} 20. Rf3 {[%clk 0:00:21.3]} 20... Bxe4 {[%clk
0:01:09.3]} 21. Nxe4 {[%clk 0:00:20.5]} 21... Qb1+ {[%clk 0:01:06.6]} 22. Kg2
{[%clk 0:00:20.6]} 22... Qxe4 {[%clk 0:01:06.8]} 23. a3 {[%clk 0:00:11.5]} 23...
d5 {[%clk 0:01:05]} 24. Qd2 {[%clk 0:00:10.2]} 24... d4 {[%clk 0:01:04.5]} 25.
Qa5 {[%clk 0:00:06.8]} 25... d3 {[%clk 0:01:02.2]} 26. Qc7 {[%clk 0:00:06.8]}
26... d2 {[%clk 0:01:00.6]} 27. Qxe7 {[%clk 0:00:07.1]} 27... d1=Q {[%clk
0:00:58]} 28. Qxf6 {[%clk 0:00:07.5]} 28... Qdd4 {[%clk 0:00:52.3]} 29. Ng6+
{[%clk 0:00:03.3]} 29... fxg6 {[%clk 0:00:51.1]} 30. Rxh7+ {[%clk 0:00:01.8]}
30... Kxh7 {[%clk 0:00:51]} 0-1

[Event "Early-Titled-Tuesday-Blitz-March-12-2024"]
[Site "Chess.com"]
[Date "2024.03.12"]
[Round "10"]
[White "Happy1712Drummer"]
[Black "MikeWizard"]
[Result "1-0"]
[WhiteElo "2349"]
[BlackElo "2079"]
[TimeControl "180+1"]
[EndTime "9:51:57 PDT"]
[Termination "Happy1712Drummer won by checkmate"]

1. e4 {[%clk 0:03:00.9]} 1... d6 {[%clk 0:02:52.7]} 2. d4 {[%clk 0:03:00.2]}
2... Nf6 {[%clk 0:02:51.9]} 3. Nc3 {[%clk 0:03:00.9]} 3... Nbd7 {[%clk
0:02:51.8]} 4. g3 {[%clk 0:02:54.1]} 4... e5 {[%clk 0:02:51.3]} 5. Nge2 {[%clk
0:02:53.6]} 5... g6 {[%clk 0:02:50.7]} 6. Bg2 {[%clk 0:02:53.6]} 6... Bg7 {[%clk
0:02:50.6]} 7. O-O {[%clk 0:02:53.8]} 7... O-O {[%clk 0:02:50.2]} 8. h3 {[%clk
0:02:51.5]} 8... c6 {[%clk 0:02:50.1]} 9. a4 {[%clk 0:02:50.1]} 9... a5 {[%clk
0:02:48.3]} 10. Be3 {[%clk 0:02:49.3]} 10... Qc7 {[%clk 0:02:44.1]} 11. Qd2
{[%clk 0:02:48.1]} 11... Re8 {[%clk 0:02:42.9]} 12. Rad1 {[%clk 0:02:47.2]}
12... exd4 {[%clk 0:02:42.1]} 13. Nxd4 {[%clk 0:02:45.6]} 13... Nc5 {[%clk
0:02:41.6]} 14. f3 {[%clk 0:02:40]} 14... Nh5 {[%clk 0:02:36.7]} 15. Nde2 {[%clk
0:02:37.6]} 15... Be6 {[%clk 0:02:08.1]} 16. Qxd6 {[%clk 0:02:26.8]} 16... Qxd6
{[%clk 0:02:05.6]} 17. Rxd6 {[%clk 0:02:27.7]} 17... Na6 {[%clk 0:02:02.7]} 18.
f4 {[%clk 0:02:15.8]} 18... Nb4 {[%clk 0:01:54.8]} 19. Rd2 {[%clk 0:01:57.2]}
19... Bc4 {[%clk 0:01:51.2]} 20. e5 {[%clk 0:01:50.1]} 20... Bf8 {[%clk
0:01:45]} 21. b3 {[%clk 0:01:43.8]} 21... Be6 {[%clk 0:01:41.9]} 22. Ne4 {[%clk
0:01:36.7]} 22... Nd5 {[%clk 0:01:35.9]} 23. Bd4 {[%clk 0:01:30.4]} 23... Be7
{[%clk 0:01:26.4]} 24. g4 {[%clk 0:01:08.9]} 24... Ng7 {[%clk 0:01:22.3]} 25.
N2g3 {[%clk 0:01:09.5]} 25... Red8 {[%clk 0:01:07.8]} 26. f5 {[%clk 0:01:06.6]}
26... gxf5 {[%clk 0:01:05.2]} 27. gxf5 {[%clk 0:01:06.8]} 27... Bc8 {[%clk
0:00:29.4]} 28. f6 {[%clk 0:01:06.5]} 28... Bb4 {[%clk 0:00:29.2]} 29. c3 {[%clk
0:01:00.9]} 29... Ne6 {[%clk 0:00:25.7]} 30. cxb4 {[%clk 0:01:00.3]} 30... Ndf4
{[%clk 0:00:25.6]} 31. Be3 {[%clk 0:00:55.5]} 31... Rxd2 {[%clk 0:00:19.7]} 32.
Bxd2 {[%clk 0:00:56.2]} 32... Nd5 {[%clk 0:00:16.4]} 33. Nf5 {[%clk 0:00:54.2]}
33... axb4 {[%clk 0:00:15.6]} 34. Rf3 {[%clk 0:00:53.6]} 34... Kh8 {[%clk
0:00:15.3]} 35. Bh6 {[%clk 0:00:46.4]} 35... Nec7 {[%clk 0:00:11.5]} 36. Bg7+
{[%clk 0:00:45.9]} 36... Kg8 {[%clk 0:00:09.8]} 37. Nh6# {[%clk 0:00:46.8]} 1-0

[Event "Early-Titled-Tuesday-Blitz-March-12-2024"]
[Site "Chess.com"]
[Date "2024.03.12"]
[Round "10"]
[White "Alenzer"]
[Black "emeli_chess"]
[Result "0-1"]
[WhiteElo "2157"]
[BlackElo "2375"]
[TimeControl "180+1"]
[EndTime "9:52:02 PDT"]
[Termination "emeli_chess won by resignation"]

1. e4 {[%clk 0:02:59.5]} 1... c5 {[%clk 0:02:58.8]} 2. Nf3 {[%clk 0:02:59.5]}
2... d6 {[%clk 0:02:59]} 3. c3 {[%clk 0:02:59.6]} 3... Nf6 {[%clk 0:02:58.3]} 4.
h3 {[%clk 0:02:59]} 4... Bd7 {[%clk 0:02:56.1]} 5. Bd3 {[%clk 0:02:58.9]} 5...
Bc6 {[%clk 0:02:55.6]} 6. Qe2 {[%clk 0:02:57.8]} 6... Nbd7 {[%clk 0:02:54.4]} 7.
Bc2 {[%clk 0:02:57.4]} 7... e6 {[%clk 0:02:52.2]} 8. O-O {[%clk 0:02:55.4]} 8...
Be7 {[%clk 0:02:52.3]} 9. d4 {[%clk 0:02:55.5]} 9... O-O {[%clk 0:02:48.5]} 10.
e5 {[%clk 0:02:45.3]} 10... Nd5 {[%clk 0:02:47.5]} 11. exd6 {[%clk 0:02:29.9]}
11... Bxd6 {[%clk 0:02:40.7]} 12. Ne5 {[%clk 0:02:28.6]} 12... Nxe5 {[%clk
0:02:31.6]} 13. dxe5 {[%clk 0:02:28.4]} 13... Be7 {[%clk 0:02:28.5]} 14. Qg4
{[%clk 0:01:56]} 14... Kh8 {[%clk 0:02:17.7]} 15. Nd2 {[%clk 0:01:55.9]} 15...
f5 {[%clk 0:01:55]} 16. exf6 {[%clk 0:01:39]} 16... Nxf6 {[%clk 0:01:53.8]} 17.
Qxe6 {[%clk 0:01:36.9]} 17... Bd5 {[%clk 0:01:50.6]} 18. Qe2 {[%clk 0:01:22.7]}
18... Bd6 {[%clk 0:01:43]} 19. f4 {[%clk 0:01:09.7]} 19... Qc7 {[%clk
0:01:36.6]} 20. Nf3 {[%clk 0:00:59.7]} 20... Rae8 {[%clk 0:01:35.8]} 21. Qd2
{[%clk 0:00:38.4]} 21... Be4 {[%clk 0:01:25.3]} 22. Bd1 {[%clk 0:00:26.8]} 22...
c4 {[%clk 0:01:15.8]} 23. Ng5 {[%clk 0:00:23.8]} 23... Bd3 {[%clk 0:01:13.8]}
24. Rf3 {[%clk 0:00:15.2]} 24... h6 {[%clk 0:01:10.8]} 25. Bc2 {[%clk
0:00:08.5]} 25... Re2 {[%clk 0:01:03.1]} 26. Rxd3 {[%clk 0:00:06]} 26... Rxd2
{[%clk 0:01:02.4]} 27. Rxd2 {[%clk 0:00:05.9]} 27... hxg5 {[%clk 0:01:01.3]} 28.
fxg5 {[%clk 0:00:06.8]} 28... Bc5+ {[%clk 0:00:54.8]} 29. Kh1 {[%clk 0:00:06.4]}
29... Ne4 {[%clk 0:00:49.7]} 30. Rd1 {[%clk 0:00:05.6]} 30... Nf2+ {[%clk
0:00:47.3]} 0-1

[Event "Early-Titled-Tuesday-Blitz-March-12-2024"]
[Site "Chess.com"]
[Date "2024.03.12"]
[Round "10"]
[White "RobertoJBM"]
[Black "imdvb6307"]
[Result "1-0"]
[WhiteElo "2815"]
[BlackElo "2492"]
[TimeControl "180+1"]
[EndTime "9:52:05 PDT"]
[Termination "RobertoJBM won by resignation"]

1. e4 {[%clk 0:03:00.9]} 1... Nc6 {[%clk 0:03:00.1]} 2. Nf3 {[%clk 0:02:59.7]}
2... d6 {[%clk 0:03:00.4]} 3. Bb5 {[%clk 0:02:58.7]} 3... Nf6 {[%clk 0:02:52.2]}
4. Nc3 {[%clk 0:02:56.8]} 4... Bd7 {[%clk 0:02:52.3]} 5. d4 {[%clk 0:02:56.5]}
5... e5 {[%clk 0:02:51.4]} 6. O-O {[%clk 0:02:53.3]} 6... Be7 {[%clk 0:02:48.9]}
7. Re1 {[%clk 0:02:53.4]} 7... exd4 {[%clk 0:02:49.1]} 8. Nxd4 {[%clk
0:02:53.1]} 8... Nxd4 {[%clk 0:02:49.1]} 9. Qxd4 {[%clk 0:02:52.3]} 9... Bxb5
{[%clk 0:02:44.8]} 10. Nxb5 {[%clk 0:02:53.2]} 10... a6 {[%clk 0:02:44.4]} 11.
Nc3 {[%clk 0:02:51.3]} 11... O-O {[%clk 0:02:44.2]} 12. b3 {[%clk 0:02:49.3]}
12... Nd7 {[%clk 0:02:44.1]} 13. Bb2 {[%clk 0:02:49]} 13... Bf6 {[%clk 0:02:44]}
14. Qd2 {[%clk 0:02:48.6]} 14... Re8 {[%clk 0:02:33.1]} 15. Re2 {[%clk
0:02:44.8]} 15... Nc5 {[%clk 0:02:28]} 16. Rae1 {[%clk 0:02:44.1]} 16... Ne6
{[%clk 0:02:08]} 17. Nd1 {[%clk 0:02:37.5]} 17... Bxb2 {[%clk 0:02:07.3]} 18.
Nxb2 {[%clk 0:02:38.4]} 18... Qf6 {[%clk 0:02:07.5]} 19. Nc4 {[%clk 0:02:36.7]}
19... Qd4 {[%clk 0:01:41.3]} 20. Qxd4 {[%clk 0:02:19.9]} 20... Nxd4 {[%clk
0:01:40.6]} 21. Rd2 {[%clk 0:02:20.8]} 21... Nc6 {[%clk 0:01:33.9]} 22. f3
{[%clk 0:02:20.4]} 22... f5 {[%clk 0:01:28.8]} 23. Kf2 {[%clk 0:01:57.7]} 23...
fxe4 {[%clk 0:01:28.3]} 24. Rxe4 {[%clk 0:01:58.6]} 24... Rxe4 {[%clk
0:01:27.9]} 25. fxe4 {[%clk 0:01:59.5]} 25... Re8 {[%clk 0:01:27]} 26. Ke3
{[%clk 0:01:56.7]} 26... Kf7 {[%clk 0:01:09.4]} 27. h3 {[%clk 0:01:55.7]} 27...
Ne5 {[%clk 0:01:08.2]} 28. Na5 {[%clk 0:01:53.8]} 28... b6 {[%clk 0:01:08]} 29.
Nc4 {[%clk 0:01:50.3]} 29... Nxc4+ {[%clk 0:01:08.1]} 30. bxc4 {[%clk
0:01:51.2]} 30... Re5 {[%clk 0:01:05.7]} 31. Kd4 {[%clk 0:01:48.3]} 31... Ra5
{[%clk 0:01:04.6]} 32. c3 {[%clk 0:01:48.6]} 32... Rg5 {[%clk 0:01:02]} 33. g4
{[%clk 0:01:47.8]} 33... h5 {[%clk 0:01:01.6]} 34. Rf2+ {[%clk 0:01:47.6]} 34...
Kg6 {[%clk 0:00:56.5]} 35. Rf4 {[%clk 0:01:46.6]} 35... hxg4 {[%clk 0:00:55.3]}
36. hxg4 {[%clk 0:01:47.5]} 36... Ra5 {[%clk 0:00:53.6]} 37. Rf2 {[%clk
0:01:47.6]} 37... Kg5 {[%clk 0:00:42.3]} 38. Rf7 {[%clk 0:01:47.1]} 38... c5+
{[%clk 0:00:36.9]} 39. Kd5 {[%clk 0:01:47.5]} 39... g6 {[%clk 0:00:37]} 40. Kxd6
{[%clk 0:01:46.1]} 40... Rxa2 {[%clk 0:00:36]} 41. e5 {[%clk 0:01:46.6]} 41...
a5 {[%clk 0:00:32.2]} 42. e6 {[%clk 0:01:44.2]} 42... Rd2+ {[%clk 0:00:30.1]}
43. Kc6 {[%clk 0:01:44.3]} 43... Re2 {[%clk 0:00:30.3]} 44. e7 {[%clk
0:01:42.5]} 44... a4 {[%clk 0:00:26.7]} 45. Kd7 {[%clk 0:01:41.3]} 45... Rd2+
{[%clk 0:00:24.5]} 46. Ke8 {[%clk 0:01:36.5]} 46... Kxg4 {[%clk 0:00:15.8]} 47.
Kf8 {[%clk 0:01:35.4]} 47... Re2 {[%clk 0:00:15.2]} 48. e8=Q {[%clk 0:01:26.5]}
48... Rxe8+ {[%clk 0:00:14.9]} 49. Kxe8 {[%clk 0:01:27.4]} 49... a3 {[%clk
0:00:14.8]} 50. Ra7 {[%clk 0:01:27.4]} 50... Kf3 {[%clk 0:00:14.1]} 51. Rxa3
{[%clk 0:01:27.5]} 51... g5 {[%clk 0:00:14.4]} 52. Kd7 {[%clk 0:01:28]} 52... g4
{[%clk 0:00:14.1]} 53. Kc6 {[%clk 0:01:28.7]} 53... Ke2 {[%clk 0:00:11.6]} 54.
Kxb6 {[%clk 0:01:28.1]} 54... g3 {[%clk 0:00:11.8]} 55. Kxc5 {[%clk 0:01:27.6]}
55... g2 {[%clk 0:00:11.9]} 56. Ra2+ {[%clk 0:01:28]} 56... Kf3 {[%clk
0:00:09.1]} 57. Rxg2 {[%clk 0:01:28]} 1-0

[Event "Early-Titled-Tuesday-Blitz-March-12-2024"]
[Site "Chess.com"]
[Date "2024.03.12"]
[Round "10"]
[White "Cryptinz"]
[Black "sansanathalia"]
[Result "1-0"]
[WhiteElo "2519"]
[BlackElo "2368"]
[TimeControl "180+1"]
[EndTime "9:52:17 PDT"]
[Termination "Cryptinz won by resignation"]

1. e4 {[%clk 0:03:00.9]} 1... c5 {[%clk 0:02:53.5]} 2. Nf3 {[%clk 0:03:00.3]}
2... d6 {[%clk 0:02:52.3]} 3. d4 {[%clk 0:03:00]} 3... cxd4 {[%clk 0:02:45]} 4.
Nxd4 {[%clk 0:03:00.9]} 4... Nf6 {[%clk 0:02:44.8]} 5. Nc3 {[%clk 0:03:01.2]}
5... a6 {[%clk 0:02:45]} 6. Bg5 {[%clk 0:03:00.9]} 6... e6 {[%clk 0:02:44.3]} 7.
Qd2 {[%clk 0:02:56.9]} 7... Be7 {[%clk 0:02:44.4]} 8. O-O-O {[%clk 0:02:56]}
8... Qc7 {[%clk 0:02:30.4]} 9. h4 {[%clk 0:02:53.9]} 9... Nc6 {[%clk 0:02:28.4]}
10. f4 {[%clk 0:02:47.4]} 10... Bd7 {[%clk 0:02:19.5]} 11. g4 {[%clk 0:02:42.2]}
11... b5 {[%clk 0:02:12.9]} 12. Bxf6 {[%clk 0:02:11.8]} 12... Bxf6 {[%clk
0:01:57.4]} 13. Ndxb5 {[%clk 0:02:03.3]} 13... axb5 {[%clk 0:01:35.3]} 14. Nxb5
{[%clk 0:02:04.2]} 14... Qb8 {[%clk 0:00:48.7]} 15. Nxd6+ {[%clk 0:02:01.4]}
15... Kf8 {[%clk 0:00:47]} 16. e5 {[%clk 0:02:01.3]} 16... Rxa2 {[%clk
0:00:45.6]} 17. Qc3 {[%clk 0:01:35.4]} 17... Bd8 {[%clk 0:00:26.6]} 18. Bc4
{[%clk 0:01:31.6]} 18... Ba5 {[%clk 0:00:19.5]} 19. Bxa2 {[%clk 0:01:19.5]}
19... Bxc3 {[%clk 0:00:19.5]} 20. bxc3 {[%clk 0:01:20.4]} 20... Qa7 {[%clk
0:00:20]} 21. Bb3 {[%clk 0:01:15.8]} 21... Ke7 {[%clk 0:00:19.9]} 22. Rhf1
{[%clk 0:00:51.6]} 22... Qa3+ {[%clk 0:00:17.7]} 23. Kd2 {[%clk 0:00:48.8]}
23... Na5 {[%clk 0:00:18]} 24. f5 {[%clk 0:00:25.3]} 24... Nxb3+ {[%clk
0:00:17.1]} 25. cxb3 {[%clk 0:00:26.2]} 25... Qxb3 {[%clk 0:00:15.5]} 26. f6+
{[%clk 0:00:20.4]} 26... gxf6 {[%clk 0:00:15.1]} 27. Rxf6 {[%clk 0:00:20.3]}
27... Qd5+ {[%clk 0:00:15.1]} 28. Kc1 {[%clk 0:00:19.8]} 28... Qxe5 {[%clk
0:00:14.9]} 29. Rxf7+ {[%clk 0:00:19.2]} 29... Kd8 {[%clk 0:00:14]} 30. Rxd7+
{[%clk 0:00:19.5]} 30... Kxd7 {[%clk 0:00:11.8]} 31. Nf7+ {[%clk 0:00:20.1]}
31... Qd5 {[%clk 0:00:10.3]} 32. Rxd5+ {[%clk 0:00:20.7]} 1-0

[Event "Early-Titled-Tuesday-Blitz-March-12-2024"]
[Site "Chess.com"]
[Date "2024.03.12"]
[Round "10"]
[White "Actuary44"]
[Black "IndianSchoolOfSuffering"]
[Result "1/2-1/2"]
[WhiteElo "2508"]
[BlackElo "2400"]
[TimeControl "180+1"]
[EndTime "9:52:17 PDT"]
[Termination "Game drawn by repetition"]

1. e4 {[%clk 0:03:00.9]} 1... c5 {[%clk 0:02:58.3]} 2. d4 {[%clk 0:03:00.7]}
2... cxd4 {[%clk 0:02:53.7]} 3. c3 {[%clk 0:03:01.3]} 3... dxc3 {[%clk
0:02:53.6]} 4. Nxc3 {[%clk 0:03:02.1]} 4... Nc6 {[%clk 0:02:53.1]} 5. f4 {[%clk
0:03:02.7]} 5... d6 {[%clk 0:02:52.7]} 6. Nf3 {[%clk 0:03:03.3]} 6... Nf6 {[%clk
0:02:50]} 7. Bd3 {[%clk 0:03:03.5]} 7... a6 {[%clk 0:02:50]} 8. O-O {[%clk
0:03:03.8]} 8... g6 {[%clk 0:02:49.6]} 9. Kh1 {[%clk 0:03:04.4]} 9... Bg7 {[%clk
0:02:48.6]} 10. Qe1 {[%clk 0:03:04.9]} 10... O-O {[%clk 0:02:48]} 11. Be3 {[%clk
0:03:05.1]} 11... Bd7 {[%clk 0:02:38.2]} 12. Rd1 {[%clk 0:03:05.2]} 12... Qa5
{[%clk 0:02:35.3]} 13. f5 {[%clk 0:03:01.6]} 13... Rac8 {[%clk 0:02:30]} 14. Qh4
{[%clk 0:02:57.6]} 14... Ne5 {[%clk 0:02:28.4]} 15. Bh6 {[%clk 0:02:30.2]} 15...
Nxf3 {[%clk 0:02:27.1]} 16. Rxf3 {[%clk 0:02:22.3]} 16... Rxc3 {[%clk
0:02:26.8]} 17. bxc3 {[%clk 0:02:12.1]} 17... Rc8 {[%clk 0:02:24]} 18. Bxg7
{[%clk 0:02:08]} 18... Kxg7 {[%clk 0:02:23.7]} 19. Rh3 {[%clk 0:01:35.7]} 19...
Qe5 {[%clk 0:02:08.6]} 20. Qh6+ {[%clk 0:01:33]} 20... Kg8 {[%clk 0:02:04.4]}
21. Bc2 {[%clk 0:01:14.5]} 21... Rxc3 {[%clk 0:01:57.2]} 22. Rxc3 {[%clk
0:01:08.8]} 22... Qxc3 {[%clk 0:01:56.5]} 23. Bb3 {[%clk 0:01:04.8]} 23... gxf5
{[%clk 0:01:44.4]} 24. Qg5+ {[%clk 0:00:58.6]} 24... Kf8 {[%clk 0:01:43.4]} 25.
exf5 {[%clk 0:00:56.7]} 25... Qe5 {[%clk 0:01:32.7]} 26. Rf1 {[%clk 0:00:52.4]}
26... Bc6 {[%clk 0:01:29.2]} 27. h3 {[%clk 0:00:45.8]} 27... Qe2 {[%clk
0:01:24.2]} 28. Rg1 {[%clk 0:00:42.4]} 28... Qd3 {[%clk 0:01:12.3]} 29. Kh2
{[%clk 0:00:38.6]} 29... Qe4 {[%clk 0:01:11.6]} 30. Rf1 {[%clk 0:00:33.1]} 30...
Qe5+ {[%clk 0:01:10]} 31. Qg3 {[%clk 0:00:32.4]} 31... Qxg3+ {[%clk 0:00:55.9]}
32. Kxg3 {[%clk 0:00:33.3]} 32... Ne4+ {[%clk 0:00:55.6]} 33. Kf4 {[%clk
0:00:31.5]} 33... Nd2 {[%clk 0:00:54.4]} 34. Rf2 {[%clk 0:00:30.4]} 34... Nxb3
{[%clk 0:00:54.1]} 35. axb3 {[%clk 0:00:31.3]} 35... Kg7 {[%clk 0:00:53.2]} 36.
g4 {[%clk 0:00:30.7]} 36... h6 {[%clk 0:00:51.4]} 37. h4 {[%clk 0:00:31.1]}
37... e5+ {[%clk 0:00:49.3]} 38. fxe6 {[%clk 0:00:19.7]} 38... fxe6 {[%clk
0:00:49.3]} 39. Rd2 {[%clk 0:00:20.4]} 39... e5+ {[%clk 0:00:45.5]} 40. Kf5
{[%clk 0:00:13.3]} 40... Bd7+ {[%clk 0:00:45]} 41. Ke4 {[%clk 0:00:13.4]} 41...
Bc6+ {[%clk 0:00:44.7]} 42. Kf5 {[%clk 0:00:07.4]} 42... Bd7+ {[%clk 0:00:43.8]}
43. Ke4 {[%clk 0:00:08]} 43... Bc6+ {[%clk 0:00:44.1]} 44. Kf5 {[%clk
0:00:08.6]} 1/2-1/2

[Event "Early-Titled-Tuesday-Blitz-March-12-2024"]
[Site "Chess.com"]
[Date "2024.03.12"]
[Round "10"]
[White "Zohid6"]
[Black "vovachesss"]
[Result "0-1"]
[WhiteElo "2888"]
[BlackElo "2804"]
[TimeControl "180+1"]
[EndTime "9:52:21 PDT"]
[Termination "vovachesss won on time"]

1. e4 {[%clk 0:03:00.9]} 1... c5 {[%clk 0:02:57.8]} 2. Nf3 {[%clk 0:03:00.7]}
2... e6 {[%clk 0:02:57.8]} 3. c3 {[%clk 0:02:59.9]} 3... d5 {[%clk 0:02:56.9]}
4. e5 {[%clk 0:03:00.3]} 4... d4 {[%clk 0:02:57.2]} 5. Bd3 {[%clk 0:02:59.7]}
5... Bd7 {[%clk 0:02:53.6]} 6. cxd4 {[%clk 0:02:56]} 6... cxd4 {[%clk
0:02:53.4]} 7. O-O {[%clk 0:02:50.7]} 7... Bc6 {[%clk 0:02:50.5]} 8. Re1 {[%clk
0:02:48.3]} 8... Ne7 {[%clk 0:02:41]} 9. Na3 {[%clk 0:02:43]} 9... Ng6 {[%clk
0:02:20.7]} 10. Nc2 {[%clk 0:02:39.5]} 10... Nd7 {[%clk 0:01:50.8]} 11. Bxg6
{[%clk 0:02:07.1]} 11... hxg6 {[%clk 0:01:51.7]} 12. Ncxd4 {[%clk 0:02:07.4]}
12... Bd5 {[%clk 0:01:45.1]} 13. d3 {[%clk 0:02:06.8]} 13... Bc5 {[%clk
0:01:40]} 14. Bf4 {[%clk 0:01:40.4]} 14... Qb6 {[%clk 0:01:33.9]} 15. Be3 {[%clk
0:01:15.3]} 15... Rh5 {[%clk 0:00:55.8]} 16. Rc1 {[%clk 0:01:01.7]} 16... Rd8
{[%clk 0:00:18.3]} 17. a3 {[%clk 0:00:33.4]} 17... a5 {[%clk 0:00:17.8]} 18. Qa4
{[%clk 0:00:27.1]} 18... Ke7 {[%clk 0:00:17.5]} 19. b4 {[%clk 0:00:23.4]} 19...
axb4 {[%clk 0:00:16.9]} 20. axb4 {[%clk 0:00:24.3]} 20... Qxb4 {[%clk
0:00:15.5]} 21. Nf5+ {[%clk 0:00:17.1]} 21... Rxf5 {[%clk 0:00:04.1]} 0-1

[Event "Early-Titled-Tuesday-Blitz-March-12-2024"]
[Site "Chess.com"]
[Date "2024.03.12"]
[Round "10"]
[White "Let_it_be_1"]
[Black "theoneandonlydaaevik"]
[Result "1-0"]
[WhiteElo "2626"]
[BlackElo "2517"]
[TimeControl "180+1"]
[EndTime "9:52:24 PDT"]
[Termination "Let_it_be_1 won by resignation"]

1. e4 {[%clk 0:03:00.9]} 1... c6 {[%clk 0:02:57.8]} 2. d4 {[%clk 0:03:00.7]}
2... d5 {[%clk 0:02:58.2]} 3. Nd2 {[%clk 0:03:01.1]} 3... dxe4 {[%clk
0:02:58.4]} 4. Nxe4 {[%clk 0:03:01.9]} 4... Nf6 {[%clk 0:02:59.3]} 5. Nxf6+
{[%clk 0:03:02.2]} 5... exf6 {[%clk 0:03:00.2]} 6. c3 {[%clk 0:03:02.8]} 6...
Bd6 {[%clk 0:03:00.6]} 7. Bd3 {[%clk 0:03:03.2]} 7... O-O {[%clk 0:03:01.2]} 8.
Ne2 {[%clk 0:03:03.9]} 8... Re8 {[%clk 0:03:00]} 9. Qc2 {[%clk 0:03:04.2]} 9...
h5 {[%clk 0:02:59.6]} 10. Be3 {[%clk 0:03:04.6]} 10... Nd7 {[%clk 0:02:39.3]}
11. O-O-O {[%clk 0:03:04.5]} 11... Nf8 {[%clk 0:02:39.9]} 12. c4 {[%clk
0:03:04.3]} 12... h4 {[%clk 0:02:34.5]} 13. h3 {[%clk 0:03:03]} 13... Be6 {[%clk
0:02:30.1]} 14. Nc3 {[%clk 0:03:02.4]} 14... Rc8 {[%clk 0:02:12.9]} 15. c5
{[%clk 0:03:01.4]} 15... Bb8 {[%clk 0:02:09.1]} 16. Be4 {[%clk 0:02:58.8]} 16...
Bd5 {[%clk 0:01:52.2]} 17. Bxd5 {[%clk 0:02:56.5]} 17... cxd5 {[%clk 0:01:53.1]}
18. Qf5 {[%clk 0:02:55.5]} 18... b6 {[%clk 0:01:45.7]} 19. Qxd5 {[%clk
0:02:48.7]} 19... bxc5 {[%clk 0:01:11.9]} 20. Qxd8 {[%clk 0:02:44.2]} 20...
Rexd8 {[%clk 0:01:10.2]} 21. dxc5 {[%clk 0:02:44.4]} 21... Re8 {[%clk
0:00:54.8]} 22. b4 {[%clk 0:02:34.5]} 22... f5 {[%clk 0:00:51.9]} 23. Nd5 {[%clk
0:02:20.2]} 23... Ne6 {[%clk 0:00:50.6]} 24. Rhe1 {[%clk 0:02:05.7]} 24... Kf8
{[%clk 0:00:31.9]} 25. Kb2 {[%clk 0:01:49.3]} 25... Red8 {[%clk 0:00:22.7]} 26.
Nc3 {[%clk 0:01:22.7]} 26... Be5 {[%clk 0:00:17.6]} 27. Kb3 {[%clk 0:00:42.2]}
27... f4 {[%clk 0:00:12.9]} 28. Bc1 {[%clk 0:00:41.7]} 28... Nd4+ {[%clk
0:00:08.5]} 29. Kc4 {[%clk 0:00:41.6]} 29... f6 {[%clk 0:00:05.5]} 30. Bxf4
{[%clk 0:00:35.4]} 30... Bxf4 {[%clk 0:00:04.4]} 31. Rxd4 {[%clk 0:00:34.7]}
31... Bd2 {[%clk 0:00:02.1]} 32. Rxd8+ {[%clk 0:00:32.4]} 32... Rxd8 {[%clk
0:00:03]} 33. Rd1 {[%clk 0:00:32.8]} 1-0

[Event "Early-Titled-Tuesday-Blitz-March-12-2024"]
[Site "Chess.com"]
[Date "2024.03.12"]
[Round "10"]
[White "sorch29"]
[Black "NikitaShnadrygin"]
[Result "0-1"]
[WhiteElo "2470"]
[BlackElo "2660"]
[TimeControl "180+1"]
[EndTime "9:52:29 PDT"]
[Termination "NikitaShnadrygin won on time"]

1. d4 {[%clk 0:03:00.9]} 1... d5 {[%clk 0:02:58.6]} 2. c4 {[%clk 0:02:59.6]}
2... Nc6 {[%clk 0:02:58.9]} 3. Nf3 {[%clk 0:02:50.8]} 3... Bg4 {[%clk
0:02:58.4]} 4. e3 {[%clk 0:02:44.8]} 4... e5 {[%clk 0:02:58]} 5. dxe5 {[%clk
0:02:26.7]} 5... dxc4 {[%clk 0:02:56.2]} 6. Qxd8+ {[%clk 0:01:55.9]} 6... Rxd8
{[%clk 0:02:57.1]} 7. Bxc4 {[%clk 0:01:55.9]} 7... Nxe5 {[%clk 0:02:48.3]} 8.
Be2 {[%clk 0:01:47.8]} 8... Nd3+ {[%clk 0:02:47.1]} 9. Bxd3 {[%clk 0:01:46.9]}
9... Rxd3 {[%clk 0:02:48]} 10. Bd2 {[%clk 0:01:27.1]} 10... Rd8 {[%clk
0:02:40.2]} 11. Bc3 {[%clk 0:01:25.2]} 11... Ne7 {[%clk 0:02:30]} 12. e4 {[%clk
0:01:20.9]} 12... Bxf3 {[%clk 0:02:08]} 13. gxf3 {[%clk 0:01:21.1]} 13... Ng6
{[%clk 0:02:08.7]} 14. Nd2 {[%clk 0:01:08.7]} 14... Nf4 {[%clk 0:01:50.3]} 15.
Rg1 {[%clk 0:00:49.8]} 15... f6 {[%clk 0:01:46]} 16. Nb3 {[%clk 0:00:29.9]}
16... Kf7 {[%clk 0:01:40.6]} 17. Rd1 {[%clk 0:00:28.8]} 17... Be7 {[%clk
0:01:35]} 18. Rf1 {[%clk 0:00:10.4]} 18... h5 {[%clk 0:01:07.3]} 19. Nd4 {[%clk
0:00:07.5]} 19... g6 {[%clk 0:00:58.6]} 20. Nb5 {[%clk 0:00:04.9]} 20... c6
{[%clk 0:00:53.5]} 21. Nd4 {[%clk 0:00:04.7]} 21... h4 {[%clk 0:00:46.6]} 22.
Nc2 {[%clk 0:00:03.7]} 22... h3 {[%clk 0:00:29.8]} 23. Ne3 {[%clk 0:00:03.9]}
23... Bc5 {[%clk 0:00:27.8]} 24. Rg1 {[%clk 0:00:02.9]} 24... Rxd1+ {[%clk
0:00:22.4]} 25. Kxd1 {[%clk 0:00:02.8]} 25... Rd8+ {[%clk 0:00:23]} 26. Kc2
{[%clk 0:00:03.2]} 26... Ng2 {[%clk 0:00:12.3]} 27. Nxg2 {[%clk 0:00:02.8]}
27... Bxf2 {[%clk 0:00:12.6]} 0-1